bitfinex/quotes_SOLUSD_20250514
["timestamp","ask_amount","ask_price","bid_price","bid_amount"]
[1747246931710,27.44194985,176.45,176.44,10.0]
[1747246932227,47.27759733,176.45,176.41,10.0]
[1747246932528,165.64194985,176.44,176.4,10.0]
[1747246933010,27.44194985,176.43,176.4,10.0]
[1747246933326,138.2,176.44,176.43,10.0]
[1747246933708,61.44904638,176.44,176.43,10.0]
[1747246934329,67.11669543,176.44,176.43,10.0]
[1747246934523,108.72776792,176.44,176.43,10.0]
[1747246934843,108.72776792,176.44,176.41,10.0]
[1747246935050,27.44194985,176.43,176.4,10.0]
[1747246935829,27.44194985,176.43,176.41,10.0]
[1747246936035,108.72776792,176.44,176.43,10.0]
[1747246936226,108.72776792,176.44,176.41,10.0]
[1747246936430,5.66829157,176.42,176.41,10.0]
[1747246938436,5.66797029,176.43,176.42,10.0]
[1747246938643,5.66797029,176.43,176.42,27.1394087]
[1747246938852,5.66797029,176.43,176.42,10.0]
[1747246939643,22.80737899,176.43,176.41,10.0]
[1747246940143,22.80737899,176.43,176.34,33.14212154]
[1747246940144,5.66797029,176.43,176.4,10.0]
[1747246940442,22.80802159,176.41,176.4,10.0]
[1747246941322,22.80802159,176.41,176.39,10.0]
[1747246941726,22.80802159,176.41,176.4,10.0]
[1747246941919,5.66861289,176.41,176.4,10.0]
[1747246942726,22.80802159,176.41,176.39,10.0]
[1747246943027,22.80802159,176.41,176.4,10.0]
[1747246943235,22.80802159,176.41,176.38,10.0]
[1747246943438,17.1394087,176.39,176.38,10.0]
[1747246943635,5.66861289,176.41,176.39,10.0]
[1747246943836,17.1394087,176.4,176.38,10.0]
[1747246944015,17.1394087,176.39,176.36,10.0]
[1747246944218,17.1394087,176.38,176.36,10.0]
[1747246944417,17.1394087,176.38,176.35,10.0]
[1747246944618,17.1394087,176.37,176.35,10.0]
[1747246944922,5.67022,176.36,176.35,10.0]
[1747246945122,22.8096287,176.36,176.35,10.0]
[1747246946015,5.67022,176.36,176.35,10.0]
[1747246946348,22.8096287,176.36,176.35,10.0]
[1747246946727,22.8096287,176.36,176.34,10.0]
[1747246946944,17.1394087,176.35,176.32,10.0]
[1747246947140,17.1394087,176.34,176.32,10.0]
[1747246947341,17.1394087,176.34,176.27,26.0]
[1747246947342,17.1394087,176.34,176.31,10.0]
[1747246947635,19.84577001,176.36,176.25,1.4186616]
[1747246947636,17.1394087,176.32,176.3,10.0]
[1747246947840,17.1394087,176.32,176.29,10.0]
[1747246948045,17.1394087,176.3,176.27,10.0]
[1747246948339,17.1394087,176.3,176.2,27.9278]
[1747246948340,17.1394087,176.29,176.28,10.0]
[1747246948580,17.1394087,176.31,176.28,10.0]
[1747246948742,17.1394087,176.3,176.28,10.0]
[1747246948932,22.81155844,176.3,176.29,10.0]
[1747246950053,22.81155844,176.3,176.27,10.0]
[1747246950214,5.67214974,176.3,176.29,10.0]
[1747246950419,22.81155844,176.3,176.29,10.0]
[1747246951646,5.67214974,176.3,176.29,10.0]
[1747246952236,22.81155844,176.3,176.29,10.0]
[1747246953445,22.81155844,176.3,176.26,17.1394087]
[1747246953446,22.81155844,176.3,176.26,27.1394087]
[1747246953758,22.81155844,176.3,176.29,10.0]
[1747246954058,36.9919328,176.3,176.27,10.0]
[1747246954221,17.1394087,176.29,176.27,10.0]
[1747246954422,17.1394087,176.29,176.26,10.0]
[1747246954620,17.1394087,176.29,176.27,10.0]
[1747246955540,22.81220198,176.28,176.26,10.0]
[1747246955725,17.1394087,176.27,176.25,10.0]
[1747246955934,17.1394087,176.27,176.26,10.0]
[1747246956838,17.1394087,176.27,176.25,10.0]
[1747246957035,17.1394087,176.27,176.22,17.1394087]
[1747246957036,5.67279328,176.28,176.27,10.0]
[1747246957244,22.81220198,176.28,176.26,10.0]
[1747246958337,22.81220198,176.28,176.25,10.0]
[1747246958822,22.81220198,176.28,176.26,10.0]
[1747246959521,17.1394087,176.27,176.26,10.0]
[1747246959932,22.8125238,176.27,176.26,10.0]
[1747246960229,5.6731151,176.27,176.26,10.0]
[1747246960958,5.6731151,176.27,176.26,27.1394087]
[1747246961461,5.6731151,176.27,176.26,10.0]
[1747246962155,17.1394087,176.28,176.26,10.0]
[1747246963461,17.1394087,176.27,176.26,10.0]
[1747246963664,17.1394087,176.28,176.26,10.0]
[1747246964258,5.6731151,176.27,176.26,10.0]
[1747246966458,5.6731151,176.27,176.25,10.0]
[1747246966846,22.8125238,176.27,176.25,10.0]
[1747246967054,22.8125238,176.27,176.26,10.0]
[1747246967942,22.8125238,176.27,176.25,10.0]
[1747246968658,22.8125238,176.27,176.23,10.0]
[1747246968659,17.1394087,176.26,176.23,10.0]
[1747246968879,17.1394087,176.25,176.24,10.0]
[1747246969060,17.1394087,176.26,176.25,10.0]
[1747246969758,17.1394087,176.26,176.23,10.0]
[1747246969964,17.1394087,176.25,176.22,10.0]
[1747246970127,5.67408079,176.24,176.23,10.0]
[1747246973054,5.67408079,176.24,176.22,10.0]
[1747246974442,22.81348949,176.24,176.21,10.0]
[1747246974649,22.81348949,176.24,176.2,27.1394087]
[1747246974843,36.99869148,176.24,176.2,10.0]
[1747246975052,36.99869148,176.24,176.22,10.0]
[1747246975265,36.99869148,176.24,176.23,10.0]
[1747246976362,36.99869148,176.24,176.21,10.0]
[1747246976569,36.99869148,176.24,176.22,10.0]
[1747246976871,36.99869148,176.24,176.23,10.0]
[1747246978185,5.67408079,176.24,176.23,10.0]
[1747246979757,17.1394087,176.24,176.23,10.0]
[1747246980755,17.1394087,176.25,176.23,10.0]
[1747246980951,5.67343696,176.26,176.25,10.0]
[1747246984066,5.67343696,176.26,176.24,10.0]
[1747246984067,22.81284566,176.26,176.24,10.0]
[1747246984278,17.1394087,176.25,176.22,10.0]
[1747246984480,17.1394087,176.24,176.23,10.0]
[1747246986277,22.81348949,176.24,176.23,10.0]
[1747246986582,5.67408079,176.24,176.23,10.0]
[1747246988380,22.81316756,176.25,176.23,10.0]
[1747246989078,22.81316756,176.25,176.24,10.0]
[1747246989250,22.81316756,176.25,176.23,10.0]
[1747246989574,22.81316756,176.25,176.24,10.0]
[1747246990871,5.67375886,176.25,176.24,10.0]
[1747246991547,5.67375886,176.25,176.24,11.41829811]
[1747246992551,17.1394087,176.25,176.24,1.41829811]
[1747246992878,17.1394087,176.25,176.24,11.41829811]
[1747246993385,17.1394087,176.25,176.24,10.0]
[1747246993608,17.1394087,176.25,176.21,10.0]
[1747246993758,17.1394087,176.23,176.2,10.0]
[1747246993967,17.1394087,176.23,176.21,10.0]
[1747246994263,17.1394087,176.23,176.21,11.41857304]
[1747246994461,19.85702938,176.26,176.21,11.41857304]
[1747246994462,48.81413347,176.22,176.21,1.41857304]
[1747246995183,48.81413347,176.22,176.2,10.0]
[1747246995679,5.67472477,176.22,176.2,10.0]
[1747246995880,5.67472477,176.22,176.21,10.0]
[1747246996992,5.67440276,176.23,176.21,10.0]
[1747246997164,5.67440276,176.23,176.22,27.1394087]
[1747246997687,5.67440276,176.23,176.22,11.41848702]
[1747247003893,5.67408079,176.24,176.22,11.41848702]
[1747247004076,5.67408079,176.24,176.22,10.0]
[1747247004271,31.67408079,176.24,176.22,10.0]
[1747247004495,138.2,176.27,176.25,10.0]
[1747247004665,138.2,176.27,176.26,27.1394087]
[1747247004666,143.87321146,176.27,176.26,27.1394087]
[1747247005071,138.2,176.27,176.26,27.1394087]
[1747247005602,138.2,176.27,176.26,28.55758333]
[1747247005972,143.8731151,176.27,176.26,11.41817463]
[1747247006281,143.8731151,176.27,176.26,28.55758333]
[1747247006676,138.2,176.27,176.26,28.55758333]
[1747247008105,5.67247149,176.29,176.26,28.55758333]
[1747247008305,5.67247149,176.29,176.28,10.0]
[1747247009810,22.81188019,176.29,176.27,10.0]
[1747247010096,17.1394087,176.28,176.26,10.0]
[1747247010289,22.8125238,176.27,176.25,10.0]
[1747247010483,17.1394087,176.26,176.25,10.0]
[1747247010885,17.1394087,176.26,176.23,10.0]
[1747247011102,45.85590286,176.27,176.25,10.0]
[1747247011400,45.85590286,176.27,176.24,10.0]
[1747247012298,17.1394087,176.25,176.24,10.0]
[1747247013291,17.1394087,176.26,176.24,10.0]
[1747247013990,17.1394087,176.26,176.25,10.0]
[1747247014190,22.81284566,176.26,176.25,10.0]
[1747247016535,5.67343696,176.26,176.25,10.0]
[1747247016716,22.81284566,176.26,176.25,10.0]
[1747247017525,5.67343696,176.26,176.25,10.0]
[1747247017695,5.67343696,176.26,176.24,10.0]
[1747247017894,5.67343696,176.26,176.25,10.0]
[1747247019427,22.81284566,176.26,176.25,10.0]
[1747247019997,22.81284566,176.26,176.24,10.0]
[1747247020192,17.1394087,176.25,176.23,10.0]
[1747247020400,17.1394087,176.24,176.23,10.0]
[1747247021924,22.81348949,176.24,176.23,10.0]
[1747247022823,22.81348949,176.24,176.22,10.0]
[1747247023007,17.1394087,176.23,176.22,10.0]
[1747247023823,5.67472477,176.22,176.21,10.0]
[1747247024027,22.81413347,176.22,176.2,10.0]
[1747247024213,17.1394087,176.21,176.2,10.0]
[1747247024823,17.1394087,176.21,176.18,10.0]
[1747247025122,17.1394087,176.2,176.19,10.0]
[1747247025300,17.1394087,176.2,176.18,10.0]
[1747247025501,17.1394087,176.2,176.19,10.0]
[1747247025802,22.81477759,176.2,176.18,10.0]
[1747247026523,22.81477759,176.2,176.19,10.0]
[1747247026708,22.81477759,176.2,176.15,17.1394087]
[1747247026709,22.81477759,176.2,176.18,10.0]
[1747247027331,17.1394087,176.19,176.18,10.0]
[1747247027716,17.1394087,176.19,176.14,17.1394087]
[1747247027717,17.1394087,176.19,176.16,10.0]
[1747247027910,22.81574405,176.17,176.16,10.0]
[1747247028636,5.67633535,176.17,176.16,10.0]
[1747247032707,19.85702938,176.26,176.23,10.0]
[1747247032911,17.1394087,176.25,176.23,10.0]
[1747247033132,43.1394087,176.24,176.23,10.0]
[1747247033732,17.1394087,176.24,176.23,10.0]
[1747247034042,43.1394087,176.24,176.23,10.0]
[1747247034749,48.81348949,176.24,176.22,10.0]
[1747247035033,17.1394087,176.23,176.22,10.0]
[1747247035240,31.67408079,176.24,176.23,10.0]
[1747247035412,48.81348949,176.24,176.23,10.0]
[1747247036033,5.67408079,176.24,176.23,10.0]
[1747247036246,5.67343696,176.26,176.25,10.0]
[1747247036737,22.81284566,176.26,176.25,10.0]
[1747247040646,22.81284566,176.26,176.23,10.0]
[1747247040850,17.1394087,176.24,176.23,10.0]
[1747247041020,22.81348949,176.24,176.23,10.0]
[1747247041423,5.67408079,176.24,176.23,10.0]
[1747247043546,5.67375886,176.25,176.23,27.1394087]
[1747247043748,5.67375886,176.25,176.24,10.0]
[1747247045751,5.67343696,176.26,176.24,10.0]
[1747247045956,5.67343696,176.26,176.25,10.0]
[1747247052165,5.67343696,176.26,176.25,27.1394087]
[1747247053168,5.67343696,176.26,176.25,10.0]
[1747247053828,5.67315445,176.27,176.26,10.0]
[1747247054738,5.67315445,176.27,176.26,27.1394087]
[1747247055141,47.373376,176.28,176.27,10.0]
[1747247060558,47.373376,176.28,176.27,27.1394087]
[1747247060559,47.3733235,176.28,176.27,27.1394087]
[1747247060966,47.3733235,176.28,176.27,10.0]
[1747247061661,41.70053022,176.28,176.27,45.78905756]
[1747247062360,41.70053022,176.28,176.27,47.2068995]
[1747247062563,41.05773022,176.28,176.27,47.2068995]
[1747247063353,41.05773022,176.28,176.27,52.8800146]
[1747247063556,39.99313022,176.28,176.27,52.8800146]
[1747247063756,39.99313022,176.28,176.27,47.2068995]
[1747247063960,39.99313022,176.28,176.27,52.8800146]
[1747247064664,39.99313022,176.28,176.27,47.2068995]
[1747247065578,39.99313022,176.28,176.27,28.55725064]
[1747247065783,39.99313022,176.28,176.27,27.1394087]
[1747247065958,45.6659235,176.28,176.27,27.1394087]
[1747247067278,45.6659235,176.28,176.27,10.0]
[1747247067581,45.6659235,176.28,176.27,27.1394087]
[1747247068178,45.6659235,176.28,176.27,10.0]
[1747247070083,39.99313022,176.28,176.27,27.1394087]
[1747247072573,39.99313022,176.28,176.27,10.0]
[1747247073703,45.6659235,176.28,176.27,10.0]
[1747247074589,45.6659235,176.28,176.27,45.78905756]
[1747247074590,39.99313022,176.28,176.27,45.78905756]
[1747247075091,39.99313022,176.28,176.27,51.46217266]
[1747247075397,39.99313022,176.28,176.27,52.88000642]
[1747247075584,39.99313022,176.28,176.27,47.20689132]
[1747247075791,39.99313022,176.28,176.27,11.41783376]
[1747247076084,39.99313022,176.28,176.27,10.0]
[1747247076263,39.99313022,176.28,176.27,27.1394087]
[1747247076464,45.6659235,176.28,176.27,27.1394087]
[1747247076789,45.6659235,176.28,176.27,10.0]
[1747247077162,39.99313022,176.28,176.27,10.0]
[1747247077359,45.6659235,176.28,176.27,10.0]
[1747247077583,39.99313022,176.28,176.27,27.1394087]
[1747247077774,45.6659235,176.28,176.27,10.0]
[1747247080096,45.6659235,176.28,176.27,27.1394087]
[1747247080268,45.6659235,176.28,176.27,10.0]
[1747247086011,62.8053322,176.28,176.27,10.0]
[1747247086175,64.4580322,176.28,176.27,10.0]
[1747247086625,64.4580322,176.28,176.26,10.0]
[1747247086906,47.3186235,176.28,176.27,10.0]
[1747247087104,26.0,176.26,176.25,10.0]
[1747247088105,138.2,176.27,176.26,10.0]
[1747247088286,143.8731151,176.27,176.26,10.0]
[1747247089994,161.0125238,176.27,176.26,10.0]
[1747247091258,143.8731151,176.27,176.26,10.0]
[1747247091390,161.0125238,176.27,176.26,10.0]
[1747247091804,143.8731151,176.27,176.26,10.0]
[1747247091994,161.0125238,176.27,176.26,10.0]
[1747247095502,187.0125238,176.27,176.25,10.0]
[1747247095806,17.1394087,176.26,176.25,10.0]
[1747247097028,169.8731151,176.27,176.26,10.0]
[1747247097215,187.0125238,176.27,176.26,10.0]
[1747247098131,48.8125238,176.27,176.26,10.0]
[1747247100107,48.8125238,176.27,176.24,10.0]
[1747247100311,43.1394087,176.25,176.24,10.0]
[1747247100832,26.0,176.25,176.24,10.0]
[1747247101133,43.1394087,176.25,176.24,10.0]
[1747247102333,5.67408079,176.24,176.23,10.0]
[1747247102510,22.81348949,176.24,176.23,10.0]
[1747247102921,26.0,176.21,176.18,10.0]
[1747247103232,43.1394087,176.2,176.19,10.0]
[1747247104433,48.81477759,176.2,176.19,10.0]
[1747247109925,48.81477759,176.2,176.18,10.0]
[1747247110137,17.1394087,176.19,176.17,10.0]
[1747247110335,17.1394087,176.18,176.17,10.0]
[1747247110838,45.86379113,176.2,176.17,10.0]
[1747247111043,45.86379113,176.2,176.19,10.0]
[1747247111219,45.86379113,176.2,176.19,27.1394087]
[1747247111220,5.67536889,176.2,176.19,27.1394087]
[1747247111838,5.67472477,176.22,176.19,10.0]
[1747247112054,5.67472477,176.22,176.2,17.1394087]
[1747247112255,5.67472477,176.22,176.21,10.0]
[1747247116557,14.18366172,176.26,176.25,10.0]
[1747247116942,5.67343696,176.26,176.25,10.0]
[1747247117758,5.67343696,176.26,176.25,27.1394087]
[1747247118464,5.67279328,176.28,176.25,27.1394087]
[1747247118665,5.67279328,176.28,176.25,10.0]
[1747247119251,5.67279328,176.28,176.27,10.0]
[1747247121493,22.81220198,176.28,176.27,10.0]
[1747247123753,22.81220198,176.28,176.26,10.0]
[1747247124063,17.1394087,176.27,176.26,10.0]
[1747247125065,22.8125238,176.27,176.26,10.0]
[1747247129565,5.6731151,176.27,176.26,10.0]
[1747247131566,5.67279328,176.28,176.27,10.0]
[1747247132578,22.81220198,176.28,176.27,10.0]
[1747247133465,22.81220198,176.28,176.26,10.0]
[1747247133869,17.1394087,176.27,176.26,10.0]
[1747247134078,22.8125238,176.27,176.26,10.0]
[1747247134561,5.6731151,176.27,176.26,10.0]
[1747247137969,22.8125238,176.27,176.26,10.0]
[1747247139263,5.6731151,176.27,176.26,10.0]
[1747247139462,22.8125238,176.27,176.26,10.0]
[1747247143299,5.6731151,176.27,176.26,10.0]
[1747247143463,22.8125238,176.27,176.26,10.0]
[1747247144898,5.6731151,176.27,176.26,10.0]
[1747247146193,5.67279328,176.28,176.27,10.0]
[1747247146374,5.67279328,176.28,176.27,27.1394087]
[1747247147190,143.87258446,176.29,176.28,10.0]
[1747247147391,143.87258446,176.29,176.28,27.1394087]
[1747247147764,143.87258446,176.29,176.28,10.0]
[1747247148164,143.87258446,176.29,176.28,27.1394087]
[1747247149991,140.02860088,176.29,176.28,27.1394087]
[1747247152100,19.85083359,176.32,176.28,27.1394087]
[1747247152789,19.85083359,176.32,176.31,10.0]
[1747247152999,36.99024229,176.32,176.31,10.0]
[1747247154269,19.85083359,176.32,176.31,10.0]
[1747247155197,36.99024229,176.32,176.31,10.0]
[1747247155386,19.85083359,176.32,176.31,10.0]
[1747247156300,43.1394087,176.33,176.31,10.0]
[1747247156301,5.67118471,176.33,176.31,10.0]
[1747247156484,5.67118471,176.33,176.32,10.0]
[1747247157501,22.81059341,176.33,176.32,10.0]
[1747247160298,5.67118471,176.33,176.32,10.0]
[1747247160808,22.81059341,176.33,176.32,10.0]
[1747247161878,5.67118471,176.33,176.32,10.0]
[1747247162079,5.67118471,176.33,176.32,27.1394087]
[1747247162292,5.67118471,176.33,176.32,10.0]
[1747247162815,5.67118471,176.33,176.32,27.1394087]
[1747247163689,60.6416724,176.35,176.34,10.0]
[1747247163690,46.46487515,176.35,176.34,10.0]
[1747247164006,46.46487515,176.35,176.34,27.1394087]
[1747247164603,52.13550632,176.35,176.34,10.0]
[1747247164980,69.27491502,176.35,176.34,10.0]
[1747247165182,52.13550632,176.35,176.34,10.0]
[1747247165796,69.27491502,176.35,176.34,10.0]
[1747247167914,52.13550632,176.35,176.34,10.0]
[1747247170287,69.27491502,176.35,176.33,10.0]
[1747247170504,17.1394087,176.34,176.33,10.0]
[1747247170703,22.8102718,176.34,176.33,10.0]
[1747247171616,22.8102718,176.34,176.32,10.0]
[1747247171912,151.49542512,176.33,176.3,10.0]
[1747247172094,17.1394087,176.31,176.3,10.0]
[1747247172899,22.81123673,176.31,176.3,10.0]
[1747247173488,22.81123673,176.31,176.29,10.0]
[1747247173851,17.1394087,176.3,176.28,10.0]
[1747247174012,17.1394087,176.29,176.27,10.0]
[1747247174322,151.49542512,176.28,176.27,10.0]
[1747247175006,157.1682184,176.28,176.27,10.0]
[1747247176411,5.67279328,176.28,176.27,10.0]
[1747247178427,5.67247149,176.29,176.27,10.0]
[1747247178923,5.67247149,176.29,176.28,10.0]
[1747247180622,5.67214974,176.3,176.28,10.0]
[1747247181090,5.67214974,176.3,176.29,10.0]
[1747247182325,151.49542512,176.33,176.29,10.0]
[1747247182326,5.67173416,176.32,176.31,10.0]
[1747247182504,140.02729663,176.33,176.32,10.0]
[1747247182830,140.02729663,176.33,176.32,27.1394087]
[1747247183997,140.02729663,176.33,176.32,10.0]
[1747247192233,134.35601642,176.33,176.32,27.1394087]
[1747247192436,5.67087132,176.34,176.33,10.0]
[1747247192734,19.84495625,176.37,176.36,10.0]
[1747247195820,36.98436495,176.37,176.36,10.0]
[1747247199231,36.98436495,176.37,176.35,10.0]
[1747247199419,151.49542512,176.36,176.34,10.0]
[1747247199609,17.1394087,176.35,176.34,10.0]
[1747247200406,151.49542512,176.36,176.35,10.0]
[1747247200606,134.35601642,176.36,176.35,10.0]
[1747247200814,140.02623642,176.36,176.35,10.0]
[1747247201041,157.16564512,176.36,176.35,10.0]
[1747247203878,157.16564512,176.36,176.34,10.0]
[1747247204023,134.35601642,176.35,176.34,10.0]
[1747247204230,151.49542512,176.35,176.34,10.0]
[1747247205244,157.16596665,176.35,176.34,10.0]
[1747247207733,5.66957704,176.38,176.37,10.0]
[1747247207975,22.80898574,176.38,176.37,10.0]
[1747247209747,5.66957704,176.38,176.37,10.0]
[1747247210267,5.66957704,176.38,176.37,27.1394087]
[1747247210448,5.66957704,176.38,176.37,10.0]
[1747247213984,5.66829157,176.42,176.37,45.78905756]
[1747247214144,14.17024487,176.43,176.41,10.0]
[1747247214767,14.17024487,176.43,176.42,10.0]
[1747247217152,5.66797029,176.43,176.42,10.0]
[1747247218951,22.80737899,176.43,176.42,10.0]
[1747247220949,22.80737899,176.43,176.41,10.0]
[1747247221145,17.1394087,176.42,176.41,10.0]
[1747247222459,22.80770027,176.42,176.41,10.0]
[1747247226163,22.80770027,176.42,176.4,10.0]
[1747247226355,17.1394087,176.41,176.4,10.0]
[1747247226983,22.80802159,176.41,176.4,10.0]
[1747247228757,5.66861289,176.41,176.4,27.1394087]
[1747247229172,165.97037027,176.44,176.4,27.1394087]
[1747247229173,5.66797029,176.43,176.4,27.1394087]
[1747247229571,5.66797029,176.43,176.42,10.0]
[1747247230078,5.66797029,176.43,176.42,27.1394087]
[1747247230577,5.66797029,176.43,176.42,10.0]
[1747247232477,157.46817593,176.44,176.43,10.0]
[1747247234277,174.60758463,176.44,176.43,10.0]
[1747247235372,157.46817593,176.44,176.43,10.0]
[1747247235573,174.60758463,176.44,176.43,10.0]
[1747247242003,40.25156821,176.44,176.41,10.0]
[1747247242310,40.25156821,176.44,176.43,10.0]
[1747247242311,23.11215951,176.44,176.43,10.0]
[1747247242506,40.25156821,176.44,176.43,10.0]
[1747247246178,26.0,176.4,176.38,10.0]
[1747247246383,17.1394087,176.39,176.38,10.0]
[1747247246599,43.1394087,176.39,176.34,10.0]
[1747247246785,26.0,176.39,176.37,10.0]
[1747247246995,17.1394087,176.38,176.37,10.0]
[1747247248210,22.80898574,176.38,176.36,10.0]
[1747247248409,17.1394087,176.37,176.36,10.0]
[1747247250508,22.8093072,176.37,176.36,10.0]
[1747247251211,22.8093072,176.37,176.34,10.0]
[1747247251518,17.1394087,176.35,176.34,10.0]
[1747247252699,22.80995023,176.35,176.34,10.0]
[1747247254524,22.80995023,176.35,176.34,10.0]
[1747247256138,5.67054153,176.35,176.34,10.0]
[1747247257429,22.80995023,176.35,176.34,10.0]
[1747247260410,22.80995023,176.35,176.33,10.0]
[1747247260606,17.1394087,176.34,176.33,10.0]
[1747247261129,22.8102718,176.34,176.33,10.0]
[1747247261301,22.8102718,176.34,176.31,10.0]
[1747247261499,17.1394087,176.32,176.31,10.0]
[1747247262038,5.6708631,176.34,176.31,10.0]
[1747247262234,5.6708631,176.34,176.27,17.1394087]
[1747247262235,17.1394087,176.32,176.3,10.0]
[1747247262443,17.1394087,176.31,176.3,10.0]
[1747247263127,22.81123673,176.31,176.29,10.0]
[1747247263334,17.1394087,176.3,176.28,10.0]
[1747247263536,17.1394087,176.29,176.28,10.0]
[1747247263708,17.1394087,176.29,176.26,10.0]
[1747247264036,17.1394087,176.27,176.26,10.0]
[1747247265206,22.8125238,176.27,176.26,10.0]
[1747247265936,5.6731151,176.27,176.26,10.0]
[1747247266532,5.67247149,176.29,176.28,10.0]
[1747247271766,22.81188019,176.29,176.28,10.0]
[1747247274364,19.8513981,176.31,176.3,10.0]
[1747247274565,36.9908068,176.31,176.3,10.0]
[1747247280979,5.67182803,176.31,176.3,10.0]
[1747247281260,5.67118471,176.33,176.3,27.1394087]
[1747247281567,143.87092813,176.34,176.33,10.0]
[1747247281967,138.2,176.34,176.33,27.1394087]
[1747247282463,5.66957704,176.38,176.37,10.0]
[1747247283243,22.80898574,176.38,176.37,10.0]
[1747247283965,22.80898574,176.38,176.36,10.0]
[1747247284146,5.66957704,176.38,176.37,10.0]
[1747247284341,22.80898574,176.38,176.37,10.0]
[1747247285261,5.66957704,176.38,176.37,10.0]
[1747247285565,22.80898574,176.38,176.37,10.0]
[1747247285749,5.66957704,176.38,176.37,10.0]
[1747247287961,22.80898574,176.38,176.37,10.0]
[1747247289141,22.80898574,176.38,176.36,10.0]
[1747247289342,17.1394087,176.37,176.35,10.0]
[1747247289542,17.1394087,176.36,176.35,10.0]
[1747247290059,22.8096287,176.36,176.35,10.0]
[1747247297865,22.8096287,176.36,176.34,10.0]
[1747247298052,155.3394087,176.35,176.34,10.0]
[1747247298981,155.3394087,176.35,176.32,10.0]
[1747247299263,17.1394087,176.33,176.31,10.0]
[1747247299463,17.1394087,176.32,176.31,10.0]
[1747247299665,17.1394087,176.32,176.3,10.0]
[1747247299870,17.1394087,176.31,176.3,10.0]
[1747247300247,17.1394087,176.31,176.29,10.0]
[1747247300453,17.1394087,176.3,176.29,10.0]
[1747247300769,17.1394087,176.3,176.27,10.0]
[1747247300972,17.1394087,176.28,176.27,10.0]
[1747247302061,22.81220198,176.28,176.27,10.0]
[1747247303068,22.81220198,176.28,176.26,10.0]
[1747247303275,17.1394087,176.27,176.26,10.0]
[1747247304176,22.8125238,176.27,176.26,10.0]
[1747247308478,5.6731151,176.27,176.26,10.0]
[1747247309455,22.8125238,176.27,176.26,10.0]
[1747247311167,22.8125238,176.27,176.25,10.0]
[1747247311368,17.1394087,176.26,176.25,10.0]
[1747247311880,17.1394087,176.26,176.24,10.0]
[1747247312070,17.1394087,176.25,176.24,10.0]
[1747247312459,22.81316756,176.25,176.24,10.0]
[1747247312654,22.81316756,176.25,176.21,10.0]
[1747247312863,158.05815602,176.25,176.23,10.0]
[1747247313067,158.05815602,176.25,176.22,10.0]
[1747247313978,17.1394087,176.23,176.22,10.0]
[1747247314509,19.8615367,176.22,176.18,10.0]
[1747247314814,17.1394087,176.19,176.18,10.0]
[1747247315104,17.1394087,176.19,176.16,10.0]
[1747247315291,17.1394087,176.17,176.16,10.0]
[1747247316575,22.81574405,176.17,176.16,10.0]
[1747247316979,22.81574405,176.17,176.15,10.0]
[1747247317280,5.67633535,176.17,176.16,10.0]
[1747247318399,22.81574405,176.17,176.16,10.0]
[1747247321404,5.67633535,176.17,176.16,10.0]
[1747247322106,5.6761093,176.18,176.17,10.0]
[1747247324477,22.815518,176.18,176.17,10.0]
[1747247325898,22.815518,176.18,176.16,10.0]
[1747247326100,155.3394087,176.17,176.16,10.0]
[1747247326477,161.01574405,176.17,176.15,10.0]
[1747247326678,17.1394087,176.16,176.15,10.0]
[1747247328003,17.1394087,176.16,176.13,10.0]
[1747247328202,17.1394087,176.14,176.13,10.0]
[1747247328706,22.81671084,176.14,176.11,10.0]
[1747247329015,17.1394087,176.12,176.11,10.0]
[1747247329377,17.1394087,176.12,176.05,2.89269254]